bitfinex-derivatives/quotes_BTCF0:USTF0_20251128
["timestamp","ask_amount","ask_price","bid_price","bid_amount"]
[1764354749548,0.4839809,90809.0,90808.0,0.04509]
[1764354749948,0.4439809,90809.0,90808.0,0.04509]
[1764354750147,0.4439809,90809.0,90808.0,0.04909]
[1764354750360,0.04297,90809.0,90808.0,0.04909]
[1764354750651,0.08297,90809.0,90808.0,0.04909]
[1764354751756,0.46297,90809.0,90808.0,0.04909]
[1764354751958,0.46297,90809.0,90808.0,0.05009]
[1764354752353,0.46297,90809.0,90808.0,0.005]
[1764354753755,0.85297,90809.0,90808.0,0.005]
[1764354754453,0.0539821,90800.0,90799.0,0.00016519]
[1764354754661,0.4739821,90800.0,90799.0,0.00016519]
[1764354754860,0.1639821,90800.0,90799.0,0.02208519]
[1764354755761,0.1659821,90800.0,90799.0,0.02208519]
[1764354756061,0.1659821,90800.0,90799.0,0.00016519]
[1764354756261,0.8259821,90800.0,90799.0,0.00016519]
[1764354757362,0.03182,90779.0,90778.0,0.0561047]
[1764354757561,0.07182,90779.0,90778.0,0.04509]
[1764354758756,0.03182,90779.0,90778.0,0.04609]
[1764354758961,0.07182,90779.0,90778.0,0.04609]
[1764354759354,0.03198519,90788.0,90787.0,0.04509]
[1764354759558,0.69198519,90788.0,90787.0,0.04509]
[1764354759957,0.03182,90785.0,90784.0,0.01268]
[1764354760259,0.3228339,90785.0,90784.0,0.0346]
[1764354761767,0.3228339,90785.0,90784.0,0.05777]
[1764354762069,0.004,90785.0,90784.0,0.05777]
[1764354762268,0.03582,90785.0,90784.0,0.05777]
[1764354762571,0.0428344,90781.0,90780.0,0.0561044]
[1764354762761,0.5328344,90781.0,90780.0,0.0561044]
[1764354764370,0.17182,90781.0,90780.0,0.0561044]
[1764354764669,0.002,90785.0,90784.0,0.068784]
[1764354764864,0.011011,90809.0,90787.0,0.0561036]
[1764354765065,0.01591,90809.0,90808.0,0.05777]
[1764354765269,0.01591,90809.0,90800.0,0.01268]
[1764354765270,0.03182,90801.0,90800.0,0.05777]
[1764354765465,0.03182,90801.0,90800.0,0.0687821]
[1764354765668,0.03182,90808.0,90807.0,0.04509]
[1764354765963,0.01591,90816.0,90815.0,0.0561002]
[1764354766168,0.42591,90816.0,90815.0,0.0561002]
[1764354766365,0.44182,90816.0,90815.0,0.0561002]
[1764354766873,0.08591,90816.0,90815.0,0.0561002]
[1764354767073,0.42591,90816.0,90815.0,0.0561002]
[1764354767467,0.44182,90816.0,90815.0,0.0561002]
[1764354768066,0.44282,90816.0,90815.0,0.0561002]
[1764354768469,0.45182,90816.0,90815.0,0.0561002]
[1764354772181,0.03182,90810.0,90809.0,0.0110109]
[1764354772382,0.13182,90810.0,90809.0,0.0110109]
[1764354772580,0.13182,90810.0,90809.0,0.0329309]
[1764354772778,0.03182,90810.0,90809.0,0.0329309]
[1764354772981,0.01,90816.0,90815.0,0.0561002]
[1764354773285,0.01,90816.0,90815.0,0.4761002]
[1764354773684,0.009,90816.0,90815.0,0.4761002]
[1764354774583,0.00016519,90817.0,90816.0,0.04509]
[1764354776787,0.00016519,90817.0,90816.0,0.40509]
[1764354777887,0.00116519,90817.0,90816.0,0.40509]
[1764354778189,0.07298519,90817.0,90816.0,0.04509]
[1764354778395,0.07198519,90817.0,90816.0,0.05859]
[1764354779086,0.0428301,90816.0,90815.0,0.01227781]
[1764354779279,0.0428301,90816.0,90811.0,0.0333606]
[1764354779280,0.03182,90812.0,90811.0,0.0333606]
[1764354779479,0.18182,90812.0,90811.0,0.0554906]
[1764354781588,0.18482,90812.0,90811.0,0.04448]
[1764354781788,0.0110115,90806.0,90805.0,0.0110113]
[1764354781983,0.0428322,90799.0,90792.0,0.023693]
[1764354782181,0.1328322,90799.0,90796.0,0.0110125]
[1764354782384,0.1328322,90799.0,90798.0,0.04464519]
[1764354784190,0.0110117,90806.0,90805.0,0.0331412]
[1764354784388,0.2510117,90806.0,90805.0,0.04448]
[1764354784585,0.2828317,90806.0,90805.0,0.04448]
[1764354785187,0.2878317,90806.0,90805.0,0.04448]
[1764354785592,0.5278317,90806.0,90805.0,0.04448]
[1764354788097,0.0978317,90806.0,90805.0,0.04448]
[1764354788298,0.1860117,90806.0,90805.0,0.04448]
[1764354788688,0.03182,90805.0,90798.0,0.01283462]
[1764354788893,0.0110122,90799.0,90798.0,0.06832692]
[1764354789096,0.0269217,90804.0,90803.0,0.0110114]
[1764354789292,0.0428317,90804.0,90803.0,0.0554914]
[1764354789596,0.0828317,90804.0,90803.0,0.0554914]
[1764354791000,0.0828317,90804.0,90803.0,0.04448]
[1764354791001,0.0868317,90804.0,90803.0,0.04448]
[1764354791303,0.0868317,90804.0,90803.0,0.0554917]
[1764354794801,0.03582,90804.0,90803.0,0.0554917]
[1764354795105,0.07482,90804.0,90803.0,0.0554917]
[1764354796599,0.0868316,90804.0,90803.0,0.0554917]
[1764354797194,0.0858316,90804.0,90803.0,0.0554917]
[1764354798796,0.0858316,90804.0,90803.0,0.04448]
[1764354805598,0.0428319,90801.0,90798.0,0.01283462]
[1764354805798,0.0428322,90799.0,90798.0,0.00016519]
[1764354806004,0.43644633,90799.0,90798.0,0.00016519]
[1764354806208,0.81644633,90799.0,90798.0,0.00016519]
[1764354809715,0.81944633,90799.0,90798.0,0.00016519]
[1764354813702,0.81944633,90799.0,90794.0,0.0140892]
[1764354813703,0.0110144,90781.0,90780.0,0.01329]
[1764354813904,0.8028344,90781.0,90780.0,0.05678]
[1764354814121,0.4028344,90781.0,90780.0,0.05678]
[1764354814415,0.0528344,90781.0,90780.0,0.05678]
[1764354814611,0.4728344,90781.0,90780.0,0.05678]
[1764354814811,0.1028344,90781.0,90780.0,0.05678]
[1764354815514,0.1428344,90781.0,90780.0,0.05678]
[1764354815721,0.1428344,90781.0,90780.0,0.05778]
[1764354817219,0.1428344,90781.0,90780.0,0.07137366]
[1764354817612,0.5928344,90781.0,90780.0,0.07137366]
[1764354817915,0.3328344,90781.0,90780.0,0.08238816]
[1764354820117,0.25,90781.0,90780.0,0.08238816]
[1764354820814,0.26591,90781.0,90780.0,0.08238816]
[1764354822015,0.28182,90781.0,90780.0,0.08238816]
[1764354823817,0.25,90781.0,90780.0,0.43238816]
[1764354824012,0.25,90781.0,90780.0,0.08238816]
[1764354824319,0.25,90781.0,90780.0,0.32238816]
[1764354826612,0.28182,90781.0,90780.0,0.07137366]
[1764354832635,0.28182,90781.0,90780.0,0.08238816]
[1764354833134,0.28182,90781.0,90780.0,0.07137366]
[1764354837733,0.00016519,90790.0,90788.0,0.04512]
[1764354838033,0.0428314,90806.0,90805.0,0.05858]
[1764354838336,0.4028314,90806.0,90805.0,0.04512]
[1764354838635,0.0428319,90801.0,90800.0,0.05858]
[1764354838832,0.5028319,90801.0,90800.0,0.05858]
[1764354839335,0.1428319,90801.0,90800.0,0.05858]
[1764354839736,0.5328319,90801.0,90800.0,0.05858]
[1764354840132,0.4628319,90801.0,90800.0,0.05858]
[1764354840930,0.03482,90801.0,90800.0,0.05858]
[1764354841129,0.07482,90801.0,90800.0,0.05858]
[1764354841431,0.03482,90801.0,90800.0,0.05858]
[1764354843045,0.01891,90801.0,90800.0,0.05858]
[1764354844341,0.03482,90801.0,90800.0,0.05858]
[1764354845239,0.03482,90801.0,90800.0,0.0695921]
[1764354845439,0.03182,90801.0,90800.0,0.0695921]
[1764354845642,0.03482,90801.0,90800.0,0.0695921]
[1764354846249,0.03482,90801.0,90800.0,0.0832874]
[1764354846841,0.03482,90801.0,90800.0,0.0722753]
[1764354846842,0.07482,90801.0,90800.0,0.0722753]
[1764354847047,0.77482,90801.0,90800.0,0.0136953]
[1764354847243,0.38482,90801.0,90800.0,0.04512]
[1764354847438,0.81482,90801.0,90800.0,0.04512]
[1764354847641,0.03182,90792.0,90791.0,0.04528519]
[1764354847932,0.12182,90792.0,90791.0,0.04528519]
[1764354848646,0.03282,90792.0,90791.0,0.04528519]
[1764354850746,0.03182,90792.0,90791.0,0.05937549]
[1764354850941,0.03282,90792.0,90791.0,0.05937549]
[1764354851340,0.07282,90792.0,90791.0,0.05937549]
[1764354852649,0.77282,90792.0,90791.0,0.01425549]
[1764354852856,0.77928,90792.0,90791.0,0.00016519]
[1764354853155,0.77282,90792.0,90791.0,0.00016519]
[1764354853748,0.51282,90792.0,90791.0,0.00016519]
[1764354854055,0.51282,90792.0,90791.0,0.04528519]
[1764354854246,0.80282,90792.0,90791.0,0.02287519]
[1764354854554,0.52282,90792.0,90791.0,0.00016519]
[1764354856163,0.75282,90792.0,90791.0,0.00016519]
[1764354856365,0.39282,90792.0,90791.0,0.02287519]
[1764354856961,0.38282,90792.0,90791.0,0.02287519]
[1764354857163,0.67282,90792.0,90791.0,0.02287519]
[1764354857464,0.67282,90792.0,90791.0,0.04422519]
[1764354858659,0.38282,90792.0,90791.0,0.04422519]
[1764354859366,0.81282,90792.0,90791.0,0.04422519]
[1764354859566,0.57282,90792.0,90791.0,0.04422519]
[1764354861070,0.57282,90792.0,90791.0,0.05523829]
[1764354861362,0.77282,90792.0,90791.0,0.04422519]
[1764354861664,0.77282,90792.0,90791.0,0.02287519]
[1764354861969,0.77282,90792.0,90791.0,0.00016519]
[1764354862357,0.39282,90792.0,90791.0,0.05510829]
[1764354863065,0.39282,90792.0,90791.0,0.04409519]
[1764354863267,0.78282,90792.0,90791.0,0.00016519]
[1764354863869,0.78282,90792.0,90791.0,0.04409519]
[1764354865160,0.48282,90792.0,90791.0,0.05510829]
[1764354865560,0.48282,90792.0,90791.0,0.04409519]
[1764354866172,0.48282,90792.0,90791.0,0.05510829]
[1764354868574,0.13282,90792.0,90791.0,0.05510829]
[1764354869066,0.14691,90792.0,90791.0,0.05510829]
[1764354869273,0.04691,90792.0,90791.0,0.05510829]
[1764354870577,0.001,90792.0,90791.0,0.05510829]
[1764354870974,0.012013,90792.0,90791.0,0.05510829]
[1764354871371,0.001,90792.0,90791.0,0.05510829]
[1764354871773,0.01691,90792.0,90791.0,0.05510829]
[1764354873661,0.03282,90792.0,90791.0,0.05510829]
[1764354874974,0.44928,90792.0,90791.0,0.00016519]
[1764354875164,0.44928,90792.0,90762.0,0.01368]
[1764354875165,0.03182,90776.0,90775.0,0.07891324]
[1764354875370,0.0428351,90775.0,90774.0,0.00010209]
[1764354875571,0.8128351,90775.0,90774.0,0.00010209]
[1764354876071,0.0428365,90763.0,90762.0,0.04564]
[1764354876268,0.03182,90757.0,90756.0,0.05932]
[1764354876471,0.15182,90757.0,90756.0,0.05932]
[1764354877077,0.15192209,90757.0,90756.0,0.05932]
[1764354878180,0.03192209,90757.0,90756.0,0.05932]
[1764354879479,0.03192209,90757.0,90756.0,0.07464381]
[1764354880481,0.07192209,90757.0,90756.0,0.07464381]
[1764354881483,0.03192209,90757.0,90756.0,0.07464381]
[1764354882284,0.04192209,90757.0,90756.0,0.07464381]
[1764354882585,0.07192209,90757.0,90756.0,0.07464381]
[1764354885085,0.03192209,90757.0,90756.0,0.07464381]
[1764354887088,0.07192209,90757.0,90756.0,0.07464381]
[1764354887586,0.44192209,90757.0,90756.0,0.03801381]
[1764354887777,0.86192209,90757.0,90756.0,0.01532381]
[1764354887982,0.03182,90754.0,90753.0,0.00016519]
[1764354888182,0.56182,90754.0,90753.0,0.00016519]
[1764354888376,0.56182,90754.0,90753.0,0.02285519]
[1764354888578,0.56182,90754.0,90753.0,0.04580519]
[1764354888780,0.39182,90754.0,90753.0,0.04580519]
[1764354888980,0.43182,90754.0,90753.0,0.05682289]
[1764354889181,0.43182,90754.0,90753.0,0.07179929]
[1764354889390,0.43182,90754.0,90753.0,0.06078159]
[1764354889582,0.43182,90754.0,90753.0,0.06178159]
[1764354890584,0.4428376,90754.0,90753.0,0.06178159]
[1764354892898,0.1728376,90754.0,90753.0,0.06178159]
[1764354893085,0.3528376,90754.0,90753.0,0.06178159]
[1764354893395,0.4128376,90754.0,90753.0,0.06178159]
[1764354894788,0.07591,90754.0,90753.0,0.06178159]
[1764354894988,0.0110176,90755.0,90754.0,0.0566576]
[1764354895190,0.1269276,90755.0,90754.0,0.0566576]
[1764354895488,0.01607519,90766.0,90765.0,0.04564]
[1764354895689,0.13607519,90766.0,90765.0,0.04564]
[1764354895895,0.12016519,90766.0,90765.0,0.04564]
[1764354896496,0.13607519,90766.0,90765.0,0.04564]
[1764354896996,0.15198519,90766.0,90765.0,0.04564]
[1764354897684,0.57398519,90766.0,90765.0,0.04564]
[1764354900392,0.15398519,90766.0,90765.0,0.04564]
[1764354900596,0.52398519,90766.0,90765.0,0.04564]
[1764354900997,0.52398519,90766.0,90765.0,0.02269]
[1764354901198,0.03182,90763.0,90762.0,0.05732]
[1764354901399,0.15182,90763.0,90762.0,0.05732]
[1764354902605,0.1628365,90763.0,90762.0,0.0683366]
[1764354903613,0.1638365,90763.0,90762.0,0.05732]
[1764354903801,0.001,90763.0,90762.0,0.0683366]
[1764354903996,0.0428345,90780.0,90779.0,0.04364]
[1764354904196,0.01591,90780.0,90779.0,0.04364]
[1764354904398,0.03182,90780.0,90779.0,0.04364]
[1764354904895,0.07182,90780.0,90779.0,0.04364]
[1764354905095,0.011014,90784.0,90783.0,0.05681]
[1764354905407,0.01607528,90789.0,90788.0,0.04364]
[1764354905899,0.07607528,90789.0,90788.0,0.04364]
[1764354906205,0.03198528,90789.0,90788.0,0.04364]
[1764354907194,0.07907528,90789.0,90788.0,0.04364]
[1764354907599,0.09498528,90789.0,90788.0,0.04364]
[1764354908807,0.06316528,90789.0,90788.0,0.04364]
[1764354909002,0.07907528,90789.0,90788.0,0.04364]
[1764354909314,0.09498528,90789.0,90788.0,0.04364]
[1764354909709,0.09198528,90789.0,90788.0,0.04364]
[1764354909913,0.09398528,90789.0,90788.0,0.04364]
[1764354910307,0.09198528,90789.0,90788.0,0.04364]
[1764354910606,0.09298528,90789.0,90788.0,0.04364]
[1764354911011,0.09398528,90789.0,90788.0,0.04364]
[1764354911408,0.09198528,90789.0,90788.0,0.04364]
[1764354911608,0.09398528,90789.0,90788.0,0.04364]
[1764354911809,0.09398528,90789.0,90788.0,0.05900651]
[1764354912711,0.09398528,90789.0,90788.0,0.01536651]
[1764354913013,0.03182,90787.0,90786.0,0.04364]
[1764354913317,0.14182,90787.0,90786.0,0.04364]
[1764354914206,0.14382,90787.0,90786.0,0.04364]
[1764354915318,0.14382,90787.0,90786.0,0.05681]
[1764354915706,0.52382,90787.0,90786.0,0.05681]
[1764354915913,0.52382,90787.0,90786.0,0.0225]
[1764354915914,0.81382,90787.0,90786.0,0.0225]
[1764354916308,0.81382,90787.0,90786.0,0.04364]
[1764354916712,0.81382,90787.0,90786.0,0.05773217]
[1764354918218,0.81382,90787.0,90786.0,0.01409217]
[1764354918409,0.0428342,90782.0,90781.0,0.0343343]
[1764354918629,0.4228342,90782.0,90781.0,0.02332]
[1764354919217,0.7928342,90782.0,90781.0,0.04553]
[1764354920311,0.7938342,90782.0,90781.0,0.04553]
[1764354920514,0.4138342,90782.0,90781.0,0.04553]
[1764354921509,0.40282,90782.0,90781.0,0.04553]
[1764354921711,0.001,90782.0,90781.0,0.04553]
[1764354922214,0.041,90782.0,90781.0,0.04553]
[1764354922415,0.07282,90782.0,90781.0,0.04553]
[1764354928419,0.03282,90782.0,90781.0,0.04553]
[1764354929718,0.00016528,90789.0,90788.0,0.0539035]
[1764354930017,0.01591,90802.0,90801.0,0.0539019]
[1764354930217,0.03182,90815.0,90814.0,0.04289]
[1764354930523,0.03182,90815.0,90814.0,0.0539003]
[1764354930724,0.0428287,90828.0,90827.0,0.04289]
[1764354931017,0.4428287,90828.0,90827.0,0.04289]
[1764354932319,0.4528287,90828.0,90827.0,0.04289]
[1764354932521,0.4428287,90828.0,90827.0,0.04289]
[1764354932721,0.4528287,90828.0,90827.0,0.04289]
[1764354933520,0.4528287,90828.0,90818.0,0.17738174]
[1764354933521,0.03182,90819.0,90818.0,0.05632519]
[1764354933720,0.43182,90819.0,90818.0,0.04305519]
[1764354933917,0.43182,90819.0,90818.0,0.05632519]
[1764354935216,0.43382,90819.0,90818.0,0.05632519]
[1764354935724,0.43182,90819.0,90818.0,0.05632519]
[1764354935920,0.43382,90819.0,90818.0,0.05632519]
[1764354936919,0.43382,90819.0,90818.0,0.0707005]
[1764354937223,0.43182,90819.0,90818.0,0.0707005]
[1764354937423,0.43382,90819.0,90818.0,0.0707005]
[1764354941031,0.43282,90819.0,90818.0,0.0707005]
[1764354941226,0.43282,90819.0,90818.0,0.0145405]
[1764354941523,0.79282,90819.0,90818.0,0.0145405]
[1764354941928,0.52282,90819.0,90818.0,0.0145405]
[1764354942429,0.52282,90819.0,90818.0,0.0355805]
[1764354944431,0.52282,90819.0,90818.0,0.0574305]
[1764354947224,0.52282,90819.0,90818.0,0.0684404]
[1764354954339,0.52282,90819.0,90818.0,0.0355805]
[1764354954538,0.39282,90819.0,90818.0,0.0145405]
[1764354954738,0.80282,90819.0,90818.0,0.00016519]
[1764354954943,0.82791139,90819.0,90818.0,0.00016519]
[1764354955343,0.80282,90819.0,90818.0,0.00016519]
[1764354958240,0.82796094,90819.0,90818.0,0.00016519]
[1764354959346,0.03182,90797.0,90796.0,0.07888227]
[1764354959548,0.0428335,90788.0,90787.0,0.02277]
[1764354959746,0.1428335,90788.0,90787.0,0.02277]
[1764354960245,0.1428335,90788.0,90787.0,0.05945979]
[1764354960448,0.5028335,90788.0,90787.0,0.01434979]
[1764354960654,0.0418346,90779.0,90778.0,0.02293519]
[1764354960954,0.5318346,90779.0,90778.0,0.04527519]
[1764354961855,0.4318346,90779.0,90778.0,0.04727519]
[1764354963053,0.4318346,90779.0,90778.0,0.06160068]
[1764354963950,0.5118346,90779.0,90778.0,0.06160068]
[1764354964954,0.1218346,90779.0,90778.0,0.06160068]
[1764354966552,0.3118346,90779.0,90778.0,0.06160068]
[1764354970757,0.7118346,90779.0,90778.0,0.06160068]
[1764354971447,0.7118346,90779.0,90778.0,0.03926068]
[1764354971942,0.0428353,90773.0,90772.0,0.00012211]
[1764354972146,0.0428353,90773.0,90760.0,0.08338908]
[1764354972147,0.03182,90761.0,90760.0,0.08338908]
[1764354972351,0.16182,90761.0,90760.0,0.0694169]
[1764354972956,0.03182,90761.0,90760.0,0.0694169]
[1764354973155,0.03192036,90761.0,90760.0,0.0694169]
[1764354973351,0.03192036,90761.0,90760.0,0.0764169]
[1764354974258,0.00010036,90761.0,90760.0,0.0764169]
[1764354974461,0.07192036,90761.0,90760.0,0.0764169]
[1764354974760,0.05601036,90761.0,90760.0,0.0764169]
[1764354975071,0.01601036,90761.0,90760.0,0.0764169]
[1764354975254,0.07192036,90761.0,90760.0,0.0764169]
[1764354975454,0.03192036,90761.0,90760.0,0.0764169]
[1764354975758,0.08192036,90761.0,90760.0,0.0764169]
[1764354976463,0.08192036,90761.0,90760.0,0.09046265]
[1764354976855,0.06601036,90761.0,90760.0,0.09046265]
[1764354977263,0.08192036,90761.0,90760.0,0.09046265]
[1764354979760,0.49192036,90761.0,90760.0,0.07944575]
[1764354980072,0.87192036,90761.0,90760.0,0.02104575]
[1764354981256,0.87192036,90761.0,90760.0,0.00350162]
[1764354981563,0.87192036,90761.0,90751.0,0.00016519]
[1764354981564,0.03182,90752.0,90751.0,0.00016519]
[1764354981765,0.86295605,90752.0,90751.0,0.00016519]
[1764354981968,0.61295605,90752.0,90751.0,0.00016519]
[1764354982561,0.62295605,90752.0,90751.0,0.00016519]
[1764354982961,0.89395605,90752.0,90751.0,0.00016519]
[1764354984969,0.47395605,90752.0,90751.0,0.00016519]
[1764354985266,0.00111825,90752.0,90751.0,0.04338519]
[1764354985470,0.01702825,90752.0,90751.0,0.04338519]
[1764354985663,0.0110169,90760.0,90752.0,0.0110178]
[1764354985869,0.0110169,90760.0,90751.0,0.04338519]
[1764354985870,0.4928369,90760.0,90759.0,0.04322]
[1764354986071,0.4528369,90760.0,90759.0,0.04322]
[1764354986371,0.5028369,90760.0,90759.0,0.04322]
[1764354987268,0.5098369,90760.0,90759.0,0.04322]
[1764354987667,0.5098369,90760.0,90758.0,0.0110171]
[1764354987668,0.5098369,90760.0,90757.0,0.0110172]
[1764354987868,0.0428377,90755.0,90754.0,0.04506]
[1764354988073,0.5128377,90755.0,90754.0,0.04506]
[1764354988274,0.2328377,90755.0,90754.0,0.04506]
[1764354989574,0.1028377,90755.0,90754.0,0.04506]
[1764354989875,0.1078377,90755.0,90754.0,0.04506]
[1764354991869,0.09682,90755.0,90754.0,0.04506]
[1764354992959,0.005,90755.0,90754.0,0.04506]
[1764354993166,0.035,90755.0,90754.0,0.04506]
[1764354993967,0.16390276,90780.0,90754.0,0.04506]
[1764354993968,0.00945,90798.0,90788.0,0.02278]
[1764354994160,0.0110138,90786.0,90785.0,0.0337938]
[1764354994367,0.4962738,90786.0,90785.0,0.0560738]
[1764354994972,0.1262738,90786.0,90785.0,0.0560738]
[1764354995366,0.15112226,90786.0,90785.0,0.0560738]
[1764354995678,0.15512226,90786.0,90785.0,0.0560738]
[1764354997376,0.14410846,90786.0,90785.0,0.0560738]
[1764354998178,0.11926,90786.0,90785.0,0.0560738]
[1764355000469,0.1415137,90786.0,90785.0,0.0110138]
[1764355000676,0.1305,90786.0,90785.0,0.0110138]
[1764355000973,0.1305,90786.0,90785.0,0.0337938]
[1764355001183,0.11926,90786.0,90785.0,0.0560738]
[1764355001876,0.0110146,90781.0,90780.0,0.0337944]
[1764355002076,0.52526,90781.0,90780.0,0.0560744]
[1764355002668,0.16526,90781.0,90780.0,0.06953393]
[1764355002868,0.0273,90786.0,90785.0,0.0560738]
[1764355003076,0.04542529,90795.0,90794.0,0.0560728]
[1764355004283,0.08542529,90795.0,90794.0,0.0337928]
[1764355004879,0.09042529,90795.0,90794.0,0.0337928]
[1764355005182,0.09042529,90795.0,90794.0,0.0560728]
[1764355006875,0.04526,90792.0,90791.0,0.0337931]
[1764355007079,0.51526,90792.0,90791.0,0.0560731]
[1764355007588,0.04526,90792.0,90791.0,0.0560731]
[1764355007981,0.04926,90792.0,90791.0,0.0560731]
[1764355009589,0.004,90792.0,90791.0,0.0560731]
[1764355009989,0.0562717,90803.0,90802.0,0.0560712]
[1764355010186,0.0762717,90803.0,90802.0,0.04506]
[1764355010491,0.4662717,90803.0,90802.0,0.04506]
[1764355011089,0.4732717,90803.0,90802.0,0.04506]
[1764355011289,0.4742717,90803.0,90802.0,0.04506]
[1764355011589,0.05326,90803.0,90802.0,0.04506]
[1764355011790,0.0642716,90803.0,90802.0,0.0560718]
[1764355012088,0.04526,90797.0,90796.0,0.0560725]
[1764355012289,0.10526,90797.0,90796.0,0.0560725]
[1764355012479,0.1162724,90797.0,90796.0,0.0560725]
[1764355012675,0.1162724,90797.0,90796.0,0.04506]
[1764355012882,0.0562727,90794.0,90793.0,0.00016519]
[1764355013081,0.9162727,90794.0,90793.0,0.00016519]
[1764355013885,0.0562736,90787.0,90786.0,0.01330877]
[1764355014093,0.0562749,90776.0,90775.0,0.02278]
[1764355014391,0.1562749,90776.0,90775.0,0.02278]
[1764355015184,0.1572749,90776.0,90775.0,0.02278]
[1764355015484,0.04526,90772.0,90771.0,0.0560755]
[1764355016879,0.05526,90772.0,90771.0,0.06989968]
[1764355017089,0.05526,90772.0,90771.0,0.07189968]
[1764355017688,0.05526,90772.0,90771.0,0.06989968]
[1764355018595,0.04233519,90785.0,90784.0,0.04537]
[1764355018785,0.50233519,90785.0,90784.0,0.04537]
[1764355020086,0.50233519,90785.0,90784.0,0.04737]
[1764355020392,0.57233519,90785.0,90784.0,0.04737]
[1764355020580,0.57233519,90785.0,90778.0,0.0110146]
[1764355020581,0.0110149,90779.0,90778.0,0.0110146]
[1764355020788,0.04217,90772.0,90771.0,0.07020968]
[1764355020988,0.10217,90772.0,90771.0,0.07020968]
[1764355022689,0.053186,90767.0,90758.0,0.011017]
[1764355022889,0.053186,90767.0,90740.0,0.25756561]
[1764355022890,0.823186,90767.0,90745.0,0.07882473]
[1764355023088,0.84797999,90767.0,90758.0,0.01371049]
[1764355023288,0.053187,90759.0,90758.0,0.01371049]
[1764355023496,0.04217,90747.0,90746.0,0.0336485]
[1764355023797,0.02112,90735.0,90734.0,0.04537]
[1764355023987,0.08217,90735.0,90734.0,0.05639]
[1764355024298,0.04217,90737.0,90736.0,0.0691597]
[1764355024498,0.08217,90737.0,90736.0,0.0691597]
[1764355024889,0.06105,90737.0,90736.0,0.0691597]
[1764355025092,0.08217,90737.0,90736.0,0.0691597]
[1764355025991,0.0001653,90744.0,90743.0,0.0563889]
[1764355026187,0.0531868,90761.0,90760.0,0.04537]
[1764355026400,0.04217,90753.0,90752.0,0.05814]
[1764355026693,0.4331877,90753.0,90752.0,0.04537]
[1764355027599,0.0531885,90746.0,90745.0,0.04537]
[1764355027800,0.05478,90744.0,90743.0,0.0001653]
[1764355027989,0.54478,90744.0,90743.0,0.0001653]
[1764355028599,0.54478,90744.0,90743.0,0.0227953]
[1764355029201,0.53217,90744.0,90743.0,0.0455353]
[1764355029400,0.14217,90744.0,90743.0,0.0455353]
[1764355030000,0.14217,90744.0,90743.0,0.0475353]
[1764355030196,0.12105,90744.0,90743.0,0.0475353]
[1764355030597,0.14217,90744.0,90743.0,0.0475353]
[1764355030897,0.12105,90744.0,90743.0,0.06108464]
[1764355033493,0.011016,90767.0,90761.0,0.04537]
[1764355033802,0.0531872,90757.0,90756.0,0.02263]
[1764355034108,0.4731872,90757.0,90756.0,0.04537]
[1764355034494,0.5131872,90757.0,90756.0,0.04537]
[1764355035602,0.5141872,90757.0,90756.0,0.04537]
[1764355036191,0.46317,90757.0,90756.0,0.04537]
[1764355036398,0.001,90757.0,90756.0,0.44537]
[1764355038716,0.0452953,90762.0,90761.0,0.0546367]
[1764355038909,0.0952953,90762.0,90761.0,0.0546367]
[1764355039206,0.0752953,90762.0,90761.0,0.0546367]
[1764355039793,0.0752953,90762.0,90761.0,0.0556367]
[1764355039997,0.0301653,90762.0,90761.0,0.0556367]
[1764355040198,0.0001653,90762.0,90761.0,0.4456367]
[1764355040392,0.21763716,90800.0,90761.0,0.4456367]
[1764355040393,0.0561447,90778.0,90777.0,0.0546348]
[1764355040799,0.04513,90778.0,90777.0,0.0546348]
[1764355040995,0.0330644,90781.0,90780.0,0.0546344]
[1764355041194,0.02205,90784.0,90783.0,0.0546341]
[1764355041407,0.056143,90792.0,90791.0,0.0546331]
[1764355041707,0.04513,90792.0,90791.0,0.0546331]
[1764355041906,0.08513,90792.0,90791.0,0.04362]
[1764355042309,0.04513,90792.0,90791.0,0.04362]
[1764355042609,0.05213,90792.0,90791.0,0.04362]
[1764355043000,0.04913,90792.0,90791.0,0.04362]
[1764355043203,0.05013,90792.0,90791.0,0.04362]
[1764355043404,0.11013,90792.0,90791.0,0.04362]
[1764355043799,0.10913,90792.0,90791.0,0.04362]
[1764355044504,0.08605,90792.0,90791.0,0.04362]
[1764355045101,0.064,90792.0,90791.0,0.04362]
[1764355045302,0.004,90792.0,90791.0,0.04362]
[1764355045497,0.004,90792.0,90791.0,0.39362]
[1764355048705,0.004,90792.0,90791.0,0.40823941]
[1764355049213,0.09807,90792.0,90791.0,0.05823941]
[1764355050806,0.09807,90792.0,90791.0,0.01461941]
[1764355051009,0.04407,90791.0,90790.0,0.0322231]
[1764355051310,0.10407,90791.0,90790.0,0.0546431]
[1764355052117,0.10707,90791.0,90790.0,0.0546431]
[1764355053511,0.10707,90791.0,90790.0,0.06928449]
[1764355054315,0.04707,90791.0,90790.0,0.06928449]
[1764355061320,0.10707,90791.0,90790.0,0.06928449]
[1764355066320,0.04707,90791.0,90790.0,0.06928449]
[1764355077828,0.0580831,90791.0,90790.0,0.06928449]
[1764355081630,0.04707,90791.0,90790.0,0.08263449]
[1764355084530,0.003,90791.0,90790.0,0.08263449]
[1764355084945,0.003,90791.0,90790.0,0.16145922]
[1764355085339,0.02546,90791.0,90790.0,0.08263449]
[1764355085643,0.003,90791.0,90790.0,0.08263449]
[1764355094652,0.02546,90791.0,90790.0,0.08263449]
[1764355094844,0.04745,90791.0,90790.0,0.08263449]
[1764355095744,0.003,90791.0,90790.0,0.08263449]
[1764355096051,0.04653,90791.0,90790.0,0.08263449]
[1764355096845,0.0575431,90791.0,90790.0,0.08263449]
[1764355097946,0.0875431,90791.0,90790.0,0.05827139]
[1764355098147,0.07653,90791.0,90790.0,0.05755139]
[1764355098348,0.04653,90791.0,90790.0,0.08211459]
[1764355098552,0.08653,90791.0,90790.0,0.06856459]
[1764355100649,0.44653,90791.0,90790.0,0.06856459]
[1764355101051,0.003,90791.0,90790.0,0.08211459]
[1764355101755,0.0001653,90793.0,90792.0,0.04419]
[1764355102150,0.0545413,90806.0,90805.0,0.04419]
[1764355102453,0.12955855,90806.0,90805.0,0.04419]
[1764355102952,0.12955855,90806.0,90805.0,0.0552014]
[1764355103361,0.01532131,90806.0,90805.0,0.0687514]
[1764355103666,0.04353,90840.0,90839.0,0.04419]